[Event "FIDE Women's Grand Swiss 2023"]
[Site "Villa Marina, Douglas, Isle of Man, Isle Of Man"]
[Date "2023.10.29"]
[Round "5.6"]
[White "Paehtz, Elisabeth"]
[Black "Tsolakidou, Stavroula"]
[Result "1/2-1/2"]
[TimeControl "40/90 + 30 + 30s/move"]
[WhiteFideId "4641833"]
[BlackFideId "4264312"]
[WhiteElo "2484"]
[BlackElo "2385"]

1. Nf3 {[%clk 01:30:57]} {[%emt 00:00:02]} Nf6 {[%clk 01:30:53]} {[%emt
00:00:07]} 2. c4 {[%clk 01:31:17]} {[%emt 00:00:11]} g6 {[%clk 01:31:15]}
{[%emt 00:00:08]} 3. b3 {[%clk 01:31:44]} {[%emt 00:00:04]} Bg7 {[%clk
01:31:24]} {[%emt 00:00:19]} 4. Bb2 {[%clk 01:32:09]} {[%emt 00:00:05]} O-O
{[%clk 01:31:34]} {[%emt 00:00:20]} 5. g3 {[%clk 01:32:36]} {[%emt 00:00:03]}
c5 {[%clk 01:31:21]} {[%emt 00:00:42]} 6. Bg2 {[%clk 01:33:01]} {[%emt
00:00:06]} d6 {[%clk 01:31:33]} {[%emt 00:00:18]} 7. O-O {[%clk 01:31:41]}
{[%emt 00:01:51]} e5 {[%clk 01:31:18]} {[%emt 00:00:44]} 8. d3 {[%clk
01:32:03]} {[%emt 00:00:08]} Nc6 {[%clk 01:31:23]} {[%emt 00:00:25]} 9. Nc3
{[%clk 01:32:25]} {[%emt 00:00:08]} h6 {[%clk 01:26:48]} {[%emt 00:05:06]} 10.
a3 {[%clk 01:18:03]} {[%emt 00:14:51]} Be6 {[%clk 01:12:18]} {[%emt 00:15:00]}
11. Nd2 {[%clk 01:18:04]} {[%emt 00:00:29]} Qd7 {[%clk 01:09:30]} {[%emt
00:03:18]} 12. Nd5 {[%clk 01:17:57]} {[%emt 00:00:37]} Nh7 {[%clk 00:58:48]}
{[%emt 00:11:12]} 13. e3 {[%clk 01:11:54]} {[%emt 00:06:33]} f5 {[%clk
00:52:14]} {[%emt 00:07:04]} 14. b4 {[%clk 01:00:06]} {[%emt 00:12:19]} Ne7
{[%clk 00:42:58]} {[%emt 00:09:45]} 15. Qb3 {[%clk 00:40:03]} {[%emt 00:20:34]}
Rad8 {[%clk 00:40:13]} {[%emt 00:03:14]} 16. f4 {[%clk 00:35:45]} {[%emt
00:04:48]} exf4 {[%clk 00:32:27]} {[%emt 00:08:16]} 17. Bxg7 {[%clk 00:35:49]}
{[%emt 00:00:27]} Kxg7 {[%clk 00:32:53]} {[%emt 00:00:04]} 18. gxf4 {[%clk
00:34:53]} {[%emt 00:01:27]} Kg8 {[%clk 00:25:31]} {[%emt 00:07:51]} 19. bxc5
{[%clk 00:27:45]} {[%emt 00:07:38]} dxc5 {[%clk 00:25:56]} {[%emt 00:00:05]} 20.
Nxe7+ {[%clk 00:28:06]} {[%emt 00:00:09]} Qxe7 {[%clk 00:26:22]} {[%emt
00:00:04]} 21. Nf3 {[%clk 00:28:26]} {[%emt 00:00:11]} Rf7 {[%clk 00:25:59]}
{[%emt 00:00:52]} 22. Ne5 {[%clk 00:27:28]} {[%emt 00:01:28]} Rg7 {[%clk
00:26:24]} {[%emt 00:00:05]} 23. Rab1 {[%clk 00:27:30]} {[%emt 00:00:29]} Bc8
{[%clk 00:24:10]} {[%emt 00:02:44]} 24. Qc3 {[%clk 00:19:34]} {[%emt 00:08:26]}
Nf6 {[%clk 00:23:03]} {[%emt 00:01:36]} 25. Rb2 {[%clk 00:19:23]} {[%emt
00:00:42]} Kh7 {[%clk 00:19:08]} {[%emt 00:04:26]} 26. Kh1 {[%clk 00:18:13]}
{[%emt 00:01:40]} Ng4 {[%clk 00:17:54]} {[%emt 00:01:44]} 27. Nxg4 {[%clk
00:13:15]} {[%emt 00:05:28]} fxg4 {[%clk 00:18:20]} {[%emt 00:00:04]} 28. Re2
{[%clk 00:12:41]} {[%emt 00:01:04]} Bf5 {[%clk 00:14:50]} {[%emt 00:04:00]} 29.
Bd5 {[%clk 00:12:31]} {[%emt 00:00:40]} Be6 {[%clk 00:15:00]} {[%emt 00:00:20]}
30. Be4 {[%clk 00:10:36]} {[%emt 00:02:21]} Bf5 {[%clk 00:13:27]} {[%emt
00:02:06]} 31. Bd5 {[%clk 00:11:00]} {[%emt 00:00:06]} Be6 {[%clk 00:13:29]}
{[%emt 00:00:29]} 32. Bg2 {[%clk 00:10:03]} {[%emt 00:01:27]} Bf5 {[%clk
00:11:41]} {[%emt 00:02:18]} 33. Bd5 {[%clk 00:07:40]} {[%emt 00:02:53]} Be6
{[%clk 00:12:06]} {[%emt 00:00:05]} 1/2-1/2

[Event "FIDE Women's Grand Swiss 2023"]
[Site "Villa Marina, Douglas, Isle of Man, Isle Of Man"]
[Date "2023.10.29"]
[Round "5.7"]
[White "Gunina, Valentina"]
[Black "Garifullina, Leya"]
[Result "0-1"]
[TimeControl "40/90 + 30 + 30s/move"]
[WhiteFideId "4167570"]
[BlackFideId "34127035"]
[WhiteElo "2439"]
[BlackElo "2402"]

1. d4 {[%clk 01:30:52]} {[%emt 00:00:06]} Nf6 {[%clk 01:30:36]} {[%emt
00:00:26]} 2. c4 {[%clk 01:31:10]} {[%emt 00:00:12]} e6 {[%clk 01:30:59]}
{[%emt 00:00:07]} 3. Nf3 {[%clk 01:31:30]} {[%emt 00:00:09]} d5 {[%clk
01:31:22]} {[%emt 00:00:07]} 4. Nc3 {[%clk 01:31:53]} {[%emt 00:00:08]} Bb4
{[%clk 01:31:32]} {[%emt 00:00:20]} 5. Bg5 {[%clk 01:31:51]} {[%emt 00:00:30]}
h6 {[%clk 01:31:14]} {[%emt 00:00:49]} 6. Bxf6 {[%clk 01:32:00]} {[%emt
00:00:21]} Qxf6 {[%clk 01:31:32]} {[%emt 00:00:11]} 7. e3 {[%clk 01:32:21]}
{[%emt 00:00:11]} O-O {[%clk 01:31:42]} {[%emt 00:00:20]} 8. Rc1 {[%clk
01:32:27]} {[%emt 00:00:23]} dxc4 {[%clk 01:31:07]} {[%emt 00:01:07]} 9. Bxc4
{[%clk 01:32:46]} {[%emt 00:00:10]} c5 {[%clk 01:31:31]} {[%emt 00:00:06]} 10.
O-O {[%clk 01:32:57]} {[%emt 00:00:18]} cxd4 {[%clk 01:31:35]} {[%emt
00:00:27]} 11. Ne4 {[%clk 01:31:52]} {[%emt 00:01:35]} Qe7 {[%clk 01:31:04]}
{[%emt 00:01:02]} 12. a3 {[%clk 01:32:04]} {[%emt 00:00:18]} Ba5 {[%clk
01:31:27]} {[%emt 00:00:05]} 13. exd4 {[%clk 01:32:25]} {[%emt 00:00:09]} Rd8
{[%clk 01:30:44]} {[%emt 00:01:13]} 14. Rc2 {[%clk 01:31:33]} {[%emt 00:01:20]}
Bd7 {[%clk 01:27:48]} {[%emt 00:03:29]} 15. Re2 {[%clk 01:28:36]} {[%emt
00:03:25]} Bc6 {[%clk 01:27:36]} {[%emt 00:00:44]} 16. Qc2 {[%clk 01:27:22]}
{[%emt 00:01:42]} Bxe4 {[%clk 01:19:31]} {[%emt 00:08:36]} 17. Qxe4 {[%clk
01:23:23]} {[%emt 00:04:28]} Nc6 {[%clk 01:13:49]} {[%emt 00:06:13]} 18. Bd3
{[%clk 01:22:13]} {[%emt 00:01:39]} g6 {[%clk 01:07:00]} {[%emt 00:07:20]} 19.
Rd1 {[%clk 01:16:26]} {[%emt 00:06:15]} Qf6 {[%clk 01:00:52]} {[%emt 00:06:39]}
20. Bb5 {[%clk 01:10:06]} {[%emt 00:06:49]} Rac8 {[%clk 00:56:12]} {[%emt
00:05:11]} 21. h4 {[%clk 01:10:12]} {[%emt 00:00:23]} Bb6 {[%clk 00:52:20]}
{[%emt 00:04:22]} 22. Red2 {[%clk 01:09:52]} {[%emt 00:00:49]} Rd5 {[%clk
00:39:32]} {[%emt 00:13:19]} 23. Bc4 {[%clk 01:03:18]} {[%emt 00:07:03]} Rf5
{[%clk 00:34:50]} {[%emt 00:05:13]} 24. Be2 {[%clk 00:49:45]} {[%emt 00:14:01]}
Rd8 {[%clk 00:31:26]} {[%emt 00:03:56]} 25. g3 {[%clk 00:49:44]} {[%emt
00:00:31]} Rfd5 {[%clk 00:30:31]} {[%emt 00:01:25]} 26. Bc4 {[%clk 00:45:36]}
{[%emt 00:04:38]} Nxd4 {[%clk 00:27:39]} {[%emt 00:03:23]} 27. Nh2 {[%clk
00:43:34]} {[%emt 00:02:31]} R5d6 {[%clk 00:24:41]} {[%emt 00:03:29]} 28. Kg2
{[%clk 00:42:35]} {[%emt 00:01:28]} h5 {[%clk 00:17:39]} {[%emt 00:07:34]} 29.
Nf3 {[%clk 00:32:30]} {[%emt 00:10:34]} Nf5 {[%clk 00:16:56]} {[%emt 00:01:13]}
30. Bd3 {[%clk 00:30:53]} {[%emt 00:02:07]} Rd5 {[%clk 00:15:27]} {[%emt
00:02:01]} 31. Qf4 {[%clk 00:29:57]} {[%emt 00:01:24]} Kg7 {[%clk 00:12:54]}
{[%emt 00:03:03]} 32. Be4 {[%clk 00:27:16]} {[%emt 00:03:09]} Rxd2 {[%clk
00:11:12]} {[%emt 00:02:15]} 33. Rxd2 {[%clk 00:27:27]} {[%emt 00:00:19]} Rxd2
{[%clk 00:11:20]} {[%emt 00:00:22]} 34. Qxd2 {[%clk 00:27:48]} {[%emt
00:00:08]} Nh6 {[%clk 00:10:34]} {[%emt 00:01:15]} 35. Ng5 {[%clk 00:20:45]}
{[%emt 00:07:32]} Ng4 {[%clk 00:10:23]} {[%emt 00:00:43]} 36. Nh3 {[%clk
00:16:52]} {[%emt 00:04:21]} Qe7 {[%clk 00:08:47]} {[%emt 00:02:09]} 37. Qc3+
{[%clk 00:16:36]} {[%emt 00:00:42]} e5 {[%clk 00:08:10]} {[%emt 00:01:11]} 38.
Qc8 {[%clk 00:16:50]} {[%emt 00:00:15]} Qd6 {[%clk 00:06:23]} {[%emt 00:02:18]}
39. Qc3 {[%clk 00:14:34]} {[%emt 00:02:43]} Qd7 {[%clk 00:04:55]} {[%emt
00:02:01]} 40. b4 {[%clk 00:09:02]} {[%emt 00:06:00]} Bd4 {[%clk 00:04:00]}
{[%emt 00:01:27]} 41. Qf3 {[%clk 00:07:21]} {[%emt 00:02:08]} b6 {[%clk
00:03:06]} {[%emt 00:01:26]} 42. Bc6 {[%clk 00:07:15]} {[%emt 00:00:34]} Qe7
{[%clk 00:02:27]} {[%emt 00:01:10]} 43. Bd5 {[%clk 00:06:42]} {[%emt 00:01:01]}
Qf6 {[%clk 00:20:10]} {[%emt 00:12:49]} 44. Ng5 {[%clk 00:32:10]} {[%emt
00:05:01]} Qxf3+ {[%clk 00:19:06]} {[%emt 00:01:34]} 45. Kxf3 {[%clk 00:31:51]}
{[%emt 00:00:48]} Bxf2 {[%clk 00:15:52]} {[%emt 00:03:45]} 46. Nxf7 {[%clk
00:31:53]} {[%emt 00:00:28]} e4+ {[%clk 00:15:28]} {[%emt 00:00:54]} 47. Ke2
{[%clk 00:26:51]} {[%emt 00:05:31]} Bxg3 {[%clk 00:12:40]} {[%emt 00:03:19]} 48.
Nd8 {[%clk 00:27:09]} {[%emt 00:00:11]} Bxh4 {[%clk 00:10:53]} {[%emt
00:02:18]} 49. Nc6 {[%clk 00:27:18]} {[%emt 00:00:20]} Nf6 {[%clk 00:09:48]}
{[%emt 00:01:37]} 50. Be6 {[%clk 00:27:35]} {[%emt 00:00:10]} Bg3 {[%clk
00:09:17]} {[%emt 00:01:03]} 51. Nxa7 {[%clk 00:27:47]} {[%emt 00:00:18]} g5
{[%clk 00:08:33]} {[%emt 00:01:15]} 52. Nc6 {[%clk 00:26:39]} {[%emt 00:01:36]}
g4 {[%clk 00:08:14]} {[%emt 00:00:51]} 53. a4 {[%clk 00:27:00]} {[%emt
00:00:08]} Bc7 {[%clk 00:05:45]} {[%emt 00:02:59]} 54. a5 {[%clk 00:25:48]}
{[%emt 00:01:43]} bxa5 {[%clk 00:06:11]} {[%emt 00:00:04]} 55. bxa5 {[%clk
00:26:14]} {[%emt 00:00:04]} h4 {[%clk 00:05:54]} {[%emt 00:00:47]} 56. a6
{[%clk 00:25:56]} {[%emt 00:00:47]} Bb6 {[%clk 00:06:21]} {[%emt 00:00:03]} 57.
Ne5 {[%clk 00:19:39]} {[%emt 00:06:46]} h3 {[%clk 00:05:10]} {[%emt 00:01:43]}
58. Kf1 {[%clk 00:19:55]} {[%emt 00:00:13]} h2 {[%clk 00:05:19]} {[%emt
00:00:22]} 59. Kg2 {[%clk 00:20:01]} {[%emt 00:00:23]} g3 {[%clk 00:05:43]}
{[%emt 00:00:06]} 60. Bf5 {[%clk 00:10:02]} {[%emt 00:10:28]} Kh6 {[%clk
00:04:15]} {[%emt 00:01:59]} 61. Nc4 {[%clk 00:09:12]} {[%emt 00:01:20]} Ba7
{[%clk 00:03:55]} {[%emt 00:00:50]} 62. Nd6 {[%clk 00:08:32]} {[%emt 00:01:09]}
e3 {[%clk 00:04:00]} {[%emt 00:00:27]} 63. Bd3 {[%clk 00:08:41]} {[%emt
00:00:18]} Nh5 {[%clk 00:03:45]} {[%emt 00:00:47]} 64. Kh1 {[%clk 00:05:34]}
{[%emt 00:03:37]} Nf4 {[%clk 00:03:24]} {[%emt 00:00:51]} 65. Nf5+ {[%clk
00:03:11]} {[%emt 00:02:53]} Kg5 {[%clk 00:03:51]} {[%emt 00:00:03]} 66. Nxg3
{[%clk 00:03:32]} {[%emt 00:00:09]} Nxd3 {[%clk 00:04:16]} {[%emt 00:00:06]} 67.
Kxh2 {[%clk 00:03:50]} {[%emt 00:00:12]} Nf4 {[%clk 00:04:06]} {[%emt
00:00:39]} 68. Kh1 {[%clk 00:02:34]} {[%emt 00:01:46]} Kg4 {[%clk 00:04:13]}
{[%emt 00:00:23]} 69. Kh2 {[%clk 00:02:30]} {[%emt 00:00:34]} Kf3 {[%clk
00:04:25]} {[%emt 00:00:18]} 0-1

[Event "FIDE Women's Grand Swiss 2023"]
[Site "Villa Marina, Douglas, Isle of Man, Isle Of Man"]
[Date "2023.10.29"]
[Round "5.8"]
[White "Milliet, Sophie"]
[Black "Javakhishvili, Lela"]
[Result "1-0"]
[TimeControl "40/90 + 30 + 30s/move"]
[WhiteFideId "623725"]
[BlackFideId "13601458"]
[WhiteElo "2391"]
[BlackElo "2437"]

1. d4 {[%clk 01:30:57]} {[%emt 00:00:02]} Nf6 {[%clk 01:30:46]} {[%emt
00:00:14]} 2. c4 {[%clk 01:31:22]} {[%emt 00:00:05]} e6 {[%clk 01:30:22]}
{[%emt 00:00:54]} 3. g3 {[%clk 01:31:48]} {[%emt 00:00:04]} c5 {[%clk
01:29:53]} {[%emt 00:00:59]} 4. d5 {[%clk 01:32:13]} {[%emt 00:00:05]} d6
{[%clk 01:29:42]} {[%emt 00:00:40]} 5. Nc3 {[%clk 01:32:03]} {[%emt 00:00:41]}
exd5 {[%clk 01:29:59]} {[%emt 00:00:13]} 6. cxd5 {[%clk 01:32:29]} {[%emt
00:00:04]} g6 {[%clk 01:30:26]} {[%emt 00:00:03]} 7. Bg2 {[%clk 01:32:47]}
{[%emt 00:00:11]} Bg7 {[%clk 01:30:51]} {[%emt 00:00:05]} 8. Nf3 {[%clk
01:33:13]} {[%emt 00:00:04]} O-O {[%clk 01:31:07]} {[%emt 00:00:14]} 9. O-O
{[%clk 01:33:39]} {[%emt 00:00:04]} Re8 {[%clk 01:31:26]} {[%emt 00:00:11]} 10.
Re1 {[%clk 01:33:33]} {[%emt 00:00:37]} a6 {[%clk 01:27:05]} {[%emt 00:04:52]}
11. a4 {[%clk 01:33:58]} {[%emt 00:00:05]} Nbd7 {[%clk 01:25:34]} {[%emt
00:02:01]} 12. Bf4 {[%clk 01:34:00]} {[%emt 00:00:28]} h6 {[%clk 01:15:39]}
{[%emt 00:10:25]} 13. e4 {[%clk 01:30:21]} {[%emt 00:04:09]} Ng4 {[%clk
01:13:45]} {[%emt 00:02:24]} 14. Qd2 {[%clk 01:20:19]} {[%emt 00:10:32]} g5
{[%clk 01:07:27]} {[%emt 00:06:47]} 15. Bxd6 {[%clk 01:20:11]} {[%emt
00:00:39]} Qb6 {[%clk 01:06:30]} {[%emt 00:01:26]} 16. e5 {[%clk 01:12:54]}
{[%emt 00:07:47]} Ndxe5 {[%clk 01:06:06]} {[%emt 00:00:54]} 17. Bxe5 {[%clk
01:10:03]} {[%emt 00:03:21]} Nxe5 {[%clk 01:05:49]} {[%emt 00:00:47]} 18. Nxe5
{[%clk 01:10:26]} {[%emt 00:00:08]} Rxe5 {[%clk 00:52:47]} {[%emt 00:13:32]} 19.
Rxe5 {[%clk 01:05:33]} {[%emt 00:05:23]} Bxe5 {[%clk 00:53:10]} {[%emt
00:00:07]} 20. Re1 {[%clk 01:05:41]} {[%emt 00:00:22]} f6 {[%clk 00:39:48]}
{[%emt 00:13:52]} 21. a5 {[%clk 00:49:05]} {[%emt 00:17:06]} Qc7 {[%clk
00:33:31]} {[%emt 00:06:46]} 22. Ne4 {[%clk 00:46:07]} {[%emt 00:03:27]} Bf5
{[%clk 00:24:23]} {[%emt 00:09:38]} 23. d6 {[%clk 00:45:12]} {[%emt 00:01:26]}
Qc8 {[%clk 00:24:51]} {[%emt 00:00:03]} 24. Qd5+ {[%clk 00:43:44]} {[%emt
00:01:58]} Be6 {[%clk 00:19:36]} {[%emt 00:05:44]} 25. Nxf6+ {[%clk 00:43:51]}
{[%emt 00:00:24]} Bxf6 {[%clk 00:20:04]} {[%emt 00:00:02]} 26. Rxe6 {[%clk
00:44:14]} {[%emt 00:00:07]} Kg7 {[%clk 00:20:32]} {[%emt 00:00:02]} 27. d7
{[%clk 00:34:25]} {[%emt 00:10:19]} Qf8 {[%clk 00:20:36]} {[%emt 00:00:26]} 28.
Qxb7 {[%clk 00:33:25]} {[%emt 00:01:30]} Rd8 {[%clk 00:20:59]} {[%emt
00:00:06]} 29. Re8 {[%clk 00:12:09]} {[%emt 00:21:47]} Qd6 {[%clk 00:20:43]}
{[%emt 00:00:45]} 30. Qb3 {[%clk 00:10:28]} {[%emt 00:02:10]} h5 {[%clk
00:16:52]} {[%emt 00:04:21]} 31. Qg8+ {[%clk 00:10:41]} {[%emt 00:00:18]} 1-0

[Event "FIDE Women's Grand Swiss 2023"]
[Site "Villa Marina, Douglas, Isle of Man, Isle Of Man"]
[Date "2023.10.29"]
[Round "5.9"]
[White "Bulmaga, Irina"]
[Black "Beydullayeva, Govhar"]
[Result "1-0"]
[TimeControl "40/90 + 30 + 30s/move"]
[WhiteFideId "13903063"]
[BlackFideId "13413015"]
[WhiteElo "2423"]
[BlackElo "2383"]

1. e4 {[%clk 01:30:56]} {[%emt 00:00:03]} e5 {[%clk 01:30:42]} {[%emt
00:00:19]} 2. Nf3 {[%clk 01:31:17]} {[%emt 00:00:08]} Nc6 {[%clk 01:31:07]}
{[%emt 00:00:06]} 3. d4 {[%clk 01:31:29]} {[%emt 00:00:17]} exd4 {[%clk
01:31:31]} {[%emt 00:00:07]} 4. Bc4 {[%clk 01:31:41]} {[%emt 00:00:18]} Nf6
{[%clk 01:31:37]} {[%emt 00:00:25]} 5. e5 {[%clk 01:31:48]} {[%emt 00:00:22]}
d5 {[%clk 01:32:02]} {[%emt 00:00:05]} 6. Bb5 {[%clk 01:31:55]} {[%emt
00:00:23]} Ne4 {[%clk 01:31:29]} {[%emt 00:01:03]} 7. Nxd4 {[%clk 01:31:55]}
{[%emt 00:00:30]} Bc5 {[%clk 01:30:25]} {[%emt 00:01:35]} 8. Be3 {[%clk
01:31:09]} {[%emt 00:01:16]} O-O {[%clk 01:28:01]} {[%emt 00:02:54]} 9. Nxc6
{[%clk 01:28:45]} {[%emt 00:02:53]} bxc6 {[%clk 01:28:10]} {[%emt 00:00:21]} 10.
Bxc5 {[%clk 01:28:54]} {[%emt 00:00:20]} Nxc5 {[%clk 01:28:18]} {[%emt
00:00:23]} 11. Bxc6 {[%clk 01:28:42]} {[%emt 00:00:41]} Rb8 {[%clk 01:28:29]}
{[%emt 00:00:21]} 12. Qxd5 {[%clk 01:28:27]} {[%emt 00:00:45]} Qe7 {[%clk
01:27:45]} {[%emt 00:01:14]} 13. O-O {[%clk 01:27:49]} {[%emt 00:01:07]} Rxb2
{[%clk 01:27:04]} {[%emt 00:01:12]} 14. Nc3 {[%clk 01:27:12]} {[%emt 00:01:06]}
Rxc2 {[%clk 01:26:48]} {[%emt 00:00:46]} 15. Qd4 {[%clk 01:26:45]} {[%emt
00:00:57]} Ne6 {[%clk 01:21:28]} {[%emt 00:05:52]} 16. Qd3 {[%clk 01:25:20]}
{[%emt 00:01:53]} Rb2 {[%clk 01:20:49]} {[%emt 00:01:10]} 17. Qe3 {[%clk
01:23:20]} {[%emt 00:02:29]} Qc5 {[%clk 01:08:01]} {[%emt 00:13:19]} 18. Nd5
{[%clk 01:04:18]} {[%emt 00:19:32]} Ba6 {[%clk 00:43:55]} {[%emt 00:24:36]} 19.
Qxc5 {[%clk 00:56:14]} {[%emt 00:08:34]} Nxc5 {[%clk 00:44:25]} 20. Rfb1 {[%clk
00:55:35]} {[%emt 00:01:09]} Rfb8 {[%clk 00:39:38]} {[%emt 00:05:17]} 21. Rxb2
{[%clk 00:53:29]} {[%emt 00:02:36]} Rxb2 {[%clk 00:40:08]} 22. Nxc7 {[%clk
00:52:36]} {[%emt 00:01:22]} Bd3 {[%clk 00:29:12]} {[%emt 00:11:26]} 23. h4
{[%clk 00:41:08]} {[%emt 00:11:57]} Bb1 {[%clk 00:22:26]} {[%emt 00:07:17]} 24.
a4 {[%clk 00:35:03]} {[%emt 00:06:35]} Nb3 {[%clk 00:18:51]} {[%emt 00:04:06]}
25. Ra3 {[%clk 00:35:09]} {[%emt 00:00:23]} Nd4 {[%clk 00:18:52]} {[%emt
00:00:29]} 26. Bd5 {[%clk 00:30:58]} {[%emt 00:04:40]} Kf8 {[%clk 00:16:46]}
{[%emt 00:02:36]} 27. Re3 {[%clk 00:24:06]} {[%emt 00:07:22]} Rc2 {[%clk
00:08:33]} {[%emt 00:08:44]} 28. Nb5 {[%clk 00:20:32]} {[%emt 00:04:04]} Nf5
{[%clk 00:04:52]} {[%emt 00:04:12]} 29. Re1 {[%clk 00:18:02]} {[%emt 00:02:59]}
Rb2 {[%clk 00:05:12]} {[%emt 00:00:10]} 30. Nxa7 {[%clk 00:17:22]} {[%emt
00:01:10]} Nd4 {[%clk 00:04:42]} {[%emt 00:01:01]} 31. a5 {[%clk 00:14:09]}
{[%emt 00:03:42]} Ba2 {[%clk 00:04:52]} {[%emt 00:00:21]} 32. Be4 {[%clk
00:13:22]} {[%emt 00:01:16]} Bc4 {[%clk 00:04:25]} {[%emt 00:00:58]} 33. Rd1
{[%clk 00:12:17]} {[%emt 00:01:34]} Ne2+ {[%clk 00:03:08]} {[%emt 00:01:48]} 34.
Kh2 {[%clk 00:12:23]} {[%emt 00:00:24]} g6 {[%clk 00:03:31]} {[%emt 00:00:08]}
35. Rd8+ {[%clk 00:10:48]} {[%emt 00:02:04]} Kg7 {[%clk 00:03:57]} {[%emt
00:00:04]} 36. Rc8 {[%clk 00:10:37]} {[%emt 00:00:41]} Rb4 {[%clk 00:03:12]}
{[%emt 00:01:15]} 37. Nc6 {[%clk 00:06:50]} {[%emt 00:04:17]} Ra4 {[%clk
00:03:37]} {[%emt 00:00:06]} 38. Bc2 {[%clk 00:06:28]} {[%emt 00:00:51]} Ra2
{[%clk 00:03:37]} {[%emt 00:00:31]} 39. Nb4 {[%clk 00:06:29]} {[%emt 00:00:29]}
1-0

[Event "FIDE Women's Grand Swiss 2023"]
[Site "Villa Marina, Douglas, Isle of Man, Isle Of Man"]
[Date "2023.10.29"]
[Round "5.10"]
[White "Roebers, Eline"]
[Black "Muzychuk, Mariya"]
[Result "0-1"]
[TimeControl "40/90 + 30 + 30s/move"]
[WhiteFideId "1058401"]
[BlackFideId "14114550"]
[WhiteElo "2390"]
[BlackElo "2519"]

1. e4 {[%clk 01:30:58]} {[%emt 00:00:02]} c5 {[%clk 01:30:38]} {[%emt
00:00:22]} 2. Nf3 {[%clk 01:31:24]} {[%emt 00:00:04]} Nc6 {[%clk 01:31:04]}
{[%emt 00:00:05]} 3. d4 {[%clk 01:31:51]} {[%emt 00:00:03]} cxd4 {[%clk
01:31:29]} {[%emt 00:00:05]} 4. Nxd4 {[%clk 01:32:19]} {[%emt 00:00:03]} Nf6
{[%clk 01:31:45]} {[%emt 00:00:13]} 5. Nc3 {[%clk 01:32:46]} {[%emt 00:00:04]}
e5 {[%clk 01:31:38]} {[%emt 00:00:38]} 6. Ndb5 {[%clk 01:33:12]} {[%emt
00:00:03]} d6 {[%clk 01:31:55]} {[%emt 00:00:12]} 7. Bg5 {[%clk 01:33:39]}
{[%emt 00:00:03]} a6 {[%clk 01:32:00]} {[%emt 00:00:25]} 8. Na3 {[%clk
01:34:06]} {[%emt 00:00:03]} b5 {[%clk 01:32:26]} {[%emt 00:00:04]} 9. Nd5
{[%clk 01:34:34]} {[%emt 00:00:02]} Be7 {[%clk 01:32:34]} {[%emt 00:00:21]} 10.
Bxf6 {[%clk 01:35:00]} {[%emt 00:00:04]} Bxf6 {[%clk 01:33:01]} {[%emt
00:00:04]} 11. c4 {[%clk 01:35:25]} {[%emt 00:00:05]} b4 {[%clk 01:29:37]}
{[%emt 00:03:53]} 12. Nc2 {[%clk 01:35:51]} {[%emt 00:00:04]} a5 {[%clk
01:22:11]} {[%emt 00:07:57]} 13. g3 {[%clk 01:36:00]} {[%emt 00:00:20]} O-O
{[%clk 01:21:53]} {[%emt 00:00:49]} 14. h4 {[%clk 01:34:57]} {[%emt 00:01:32]}
Be6 {[%clk 01:20:57]} {[%emt 00:01:25]} 15. Bh3 {[%clk 01:34:17]} {[%emt
00:01:10]} a4 {[%clk 01:19:46]} {[%emt 00:01:42]} 16. Kf1 {[%clk 01:21:21]}
{[%emt 00:13:25]} b3 {[%clk 01:16:25]} {[%emt 00:03:52]} 17. Nce3 {[%clk
01:21:47]} {[%emt 00:00:04]} Nd4 {[%clk 01:15:14]} {[%emt 00:01:41]} 18. Kg2
{[%clk 01:22:00]} {[%emt 00:00:17]} bxa2 {[%clk 01:06:35]} {[%emt 00:09:09]} 19.
Rxa2 {[%clk 01:22:14]} {[%emt 00:00:16]} Qb8 {[%clk 01:06:36]} {[%emt
00:00:29]} 20. Qb1 {[%clk 00:53:29]} {[%emt 00:29:15]} Qb3 {[%clk 00:59:31]}
{[%emt 00:07:35]} 21. Rd1 {[%clk 00:43:45]} {[%emt 00:10:13]} Bxd5 {[%clk
00:57:19]} {[%emt 00:02:43]} 22. cxd5 {[%clk 00:39:36]} {[%emt 00:04:39]} Rfb8
{[%clk 00:57:33]} {[%emt 00:00:15]} 23. Rd3 {[%clk 00:38:38]} {[%emt 00:01:28]}
Qb4 {[%clk 00:55:27]} {[%emt 00:02:37]} 24. Qd1 {[%clk 00:33:46]} {[%emt
00:05:22]} Nb3 {[%clk 00:50:47]} {[%emt 00:05:10]} 25. f3 {[%clk 00:31:42]}
{[%emt 00:02:34]} Bd8 {[%clk 00:49:24]} {[%emt 00:01:53]} 26. Rc3 {[%clk
00:27:07]} {[%emt 00:05:05]} Bb6 {[%clk 00:43:37]} {[%emt 00:06:17]} 27. Nc2
{[%clk 00:23:48]} {[%emt 00:03:50]} Qb5 {[%clk 00:43:52]} {[%emt 00:00:15]} 28.
Kh2 {[%clk 00:23:23]} {[%emt 00:00:54]} Bc5 {[%clk 00:40:22]} {[%emt 00:04:00]}
29. Bf1 {[%clk 00:21:31]} {[%emt 00:02:22]} Qb6 {[%clk 00:39:05]} {[%emt
00:01:47]} 30. Rc4 {[%clk 00:18:16]} {[%emt 00:03:45]} Bg1+ {[%clk 00:21:24]}
{[%emt 00:18:10]} 31. Kh3 {[%clk 00:18:40]} {[%emt 00:00:05]} Qa7 {[%clk
00:14:58]} {[%emt 00:06:57]} 32. Bg2 {[%clk 00:16:25]} {[%emt 00:02:44]} Qd7+
{[%clk 00:13:15]} {[%emt 00:02:13]} 33. g4 {[%clk 00:16:54]} {[%emt 00:00:02]}
Bf2 {[%clk 00:12:51]} {[%emt 00:00:54]} 34. Nb4 {[%clk 00:09:55]} {[%emt
00:07:29]} Qd8 {[%clk 00:09:46]} {[%emt 00:03:36]} 35. g5 {[%clk 00:10:20]}
{[%emt 00:00:05]} Na5 {[%clk 00:08:35]} {[%emt 00:01:40]} 36. Rc2 {[%clk
00:10:34]} {[%emt 00:00:15]} Bxh4 {[%clk 00:07:26]} {[%emt 00:01:40]} 0-1